[Event "1st Uppsala Festival 2022"]
[Site "Uppsala"]
[Date "2022.08.11"]
[Round "5.1"]
[White "Lindberg, Bengt"]
[Black "Larkin, Vladyslav"]
[Result "0-1"]
[ECO "B43"]
[WhiteElo "2370"]
[BlackElo "2455"]
[Annotator "TA"]
[PlyCount "130"]
[EventDate "2022.08.09"]
[EventType "tourn"]
[EventCountry "SWE"]
[SourceTitle "playchess.com"]
[Source "ChessBase"]
[SourceQuality "1"]
[TimeControl "5400+30"]

{[%evp 18,130,25,34,39,22,45,0,0,0,0,0,52,45,58,59,62,55,47,59,87,83,110,112,171,171,171,169,171,161,161,89,95,57,74,75,140,95,77,95,180,179,177,175,176,179,181,175,175,158,172,158,199,144,177,134,136,137,140,142,137,141,141,111,142,127,143,106,124,80,94,94,122,68,74,0,90,49,172,162,181,40,110,113,219,0,54,0,181,172,173,173,219,0,170,0,200,167,167,129,139,139,287,181,182,184,186,-132,-131,-29975,-5197,-29983,-29983,-5397,-5357]} 1. e4 {[%emt 0:00:04]} c5 {[%emt 0:38:39]} 2. Nf3 {[%emt 0:00:07]} e6 {[%emt 0:00:04]} 3. d4 {[%emt 0:00:16]} cxd4 {[%emt 0:00:04]} 4. Nxd4 {[%emt 0:00:08]} a6 {[%emt 0:00:03]} 5. Nc3 {[%emt 0:00:23]} Qc7 {[%emt 0:00:07]} 6. Bd3 {[%emt 0:00:19]} Nf6 {[%emt 0:00:09]} 7. O-O {[%emt 0:00:42]} Nc6 {[%emt 0:01:11]} 8. Nxc6 {[%emt 0:00:50]} dxc6 {[%emt 0:00:05]} 9. f4 {[%emt 0:00:34]} e5 {[%emt 0:00:04]} 10. Kh1 {[%emt 0:02:53]} Bd6 $1 {[%emt 0:00:39][%cal Re5f4] The main line 10...Bd6 scores better than 10...Bc5. B43: Sicilian: Kan Variation: 5 Nc3.} 11. f5 {[%emt 0:02:53]} b5 {[%emt 0:05:53]} 12. Bg5 {[%emt 0:06:12]} (12. a4 $5 {[%cal Ra4b5]}) 12... Be7 {[%emt 0:02:29] The position is equal.} 13. Qf3 {[%emt 0:06:48]} Bb7 {[%emt 0:01:04] [#]} 14. Nd1 $146 {[%emt 0:20:10]} ({Predecessor:} 14. a4 Rd8 15. Nd1 h6 16. Bh4 Rd4 17. axb5 cxb5 18. Nc3 O-O 19. Bxf6 Bxf6 20. Nd5 Bxd5 21. exd5 {½-½ (68) Hirneise,J (2311)-Shkuran,D (2420) Vaxjo 2016}) 14... c5 {[%emt 0:11:09]} (14... O-O $11) 15. c4 $14 {[%emt 0:04:35]} Bc6 {[%emt 0:19:38]} 16. Nc3 {[%emt 0:09:08][%cal Rc4b5]} Rb8 {[%emt 0:01:16]} 17. Qe2 {[%emt 0:09:08][%cal Rc4b5]} Qb7 {[%emt 0:04:38]} 18. b3 {[%emt 0:00:44]} h6 {[%emt 0:00:21]} 19. Bd2 {[%emt 0:05:31]} b4 {[%emt 0:04:41]} 20. Nd5 {[%emt 0:00:16]} Bxd5 {[%emt 0:00:03]} (20... O-O $16) 21. cxd5 $18 {[%emt 0:03:51]} (21. exd5 $6 Bd6 $16) 21... a5 {[%emt 0:00:13]} 22. a4 {[%emt 0:00:55]} bxa3 {[%emt 0:00:30]} 23. Bc4 {[%emt 0:00:19]} ({Don't play} 23. Bxa5 $6 c4 24. Bxc4 (24. bxc4 O-O $14) 24... O-O $16) 23... O-O {[%emt 0:01:24]} 24. Bxa5 {[%emt 0:01:19]} (24. Rxa3 $18 Bd8 25. Qd3 (25. Bxa5 Ra8 $16)) 24... Ra8 $16 {[%emt 0:00:52]} 25. Bd2 {[%emt 0:02:18] This bishop pair is nice.} Rfb8 {[%emt 0:01:45]} 26. Ra2 {[%emt 0:01:41]} Ne8 {[%emt 0:02:08]} ({Black should try} 26... Ra7) 27. Bc3 {[%emt 0:06:30]} Bf6 {[%emt 0:01:36]} 28. Rfa1 {[%emt 0:01:01]} Nd6 {[%emt 0:00:06]} (28... Qa7 $16) 29. Rxa3 $18 {[%emt 0:00:37]} Rxa3 {[%emt 0:00:03]} 30. Rxa3 {[%emt 0:00:06]} Ra8 {[%emt 0:00:36]} 31. Rxa8+ {[%emt 0:00:20]} Qxa8 {[%emt 0:00:04]} 32. Bd3 {[%emt 0:00:21]} Qb7 {[%emt 0:01:31]} 33. Qd1 {[%emt 0:01:43]} Kh7 {[%emt 0:01:02]} 34. g3 {[%emt 0:00:54]} Qa8 {[%emt 0:02:09]} 35. g4 {[%emt 0:01:17]} (35. Qa1 $18 Qb7 36. Qa2 (36. Bxe5 Qxb3 37. Be2 Qe3 $17)) 35... Qb8 {[%emt 0:00:41]} 36. Be1 {[%emt 0:02:55]} Bg5 {[%emt 0:00:29]} 37. Bf2 {[%emt 0:02:21]} Qb4 {[%emt 0:00:07]} 38. Qc2 {[%emt 0:00:17]} Nb7 {[%emt 0:00:58]} 39. Kg2 {[%emt 0:00:18]} Qa5 {[%emt 0:00:39] Prevents Ba6.} 40. Be2 {[%emt 0:00:55]} Bf4 {[%emt 0:00:19]} 41. h3 {[%emt 0:00:49]} Bg5 {[%emt 0:00:48]} 42. Qc4 {[%emt 0:01:03]} Qa2 {[%emt 0:00:40]} 43. h4 {[%emt 0:05:29]} Be7 {[%emt 0:00:19]} 44. Qd3 {[%emt 0:00:24]} Qb2 {[%emt 0:00:24]} 45. Kf3 {[%emt 0:00:58]} (45. Be1 $16) 45... Qc1 $14 {[%emt 0:00:24]} 46. Kg2 {[%emt 0:00:05] Against Qh1+} (46. Bd1 $16) 46... Nd6 {[%emt 0:00:26]} (46... Qb2 $1 $11 {keeps the balance.}) 47. Be3 {[%emt 0:00:49]} Qa3 {[%emt 0:00:12]} (47... Qe1 $1 $14) 48. g5 $36 {[%emt 0:00:37][%mdl 2048] White is in control.} Qb4 {[%emt 0:00:04]} 49. Bf3 {[%emt 0:00:28]} (49. Qc2 $18) 49... hxg5 {[%emt 0:01:36]} (49... c4 $1 $14 50. bxc4 Nxc4) 50. hxg5 $16 {[%emt 0:00:02]} Qa3 {[%emt 0:00:33]} (50... c4 $16 {was necessary.} 51. bxc4 Nxc4) 51. Bh5 $2 {[%emt 0:00:59]} (51. Qb1 $18 Kg8 52. g6) 51... Kg8 {[%emt 0:00:22]} ({Better is} 51... c4 $1 $11 52. Qc2 cxb3 53. g6+ Kh8) 52. g6 {[%emt 0:00:39]} (52. Be2 $14) 52... f6 $2 {[%emt 0:00:10]} (52... c4 $11 53. gxf7+ Kf8) 53. Be2 {[%emt 0:00:35] [#] Strongly threatening Qc2.} Qb4 {[%emt 0:00:16]} 54. Bf3 {[%emt 0:00:16]} Qa3 {[%emt 0:00:54]} (54... c4 $142 55. bxc4 Nxc4) 55. Be2 {[%emt 0:01:21] Black must now prevent Qc2.} Qb4 {[%emt 0:00:06]} 56. Bf3 {[%emt 0:01:28]} Qa3 $1 {[%emt 0:00:13]} 57. Qd1 {[%emt 0:00:34] Threatens to win with Qh1.} Kf8 {[%emt 0:00:40]} 58. Bf2 {[%emt 0:00:15] Hoping for Qc2.} Qb2 {[%emt 0:00:51] Inhibits Qc2.} 59. Qd3 {[%emt 0:00:29]} Kg8 {[%emt 0:00:38]} (59... Qc1 $16 {was called for.} 60. Qe2 Qg5+ 61. Kf1 Qc1+ 62. Kg2 Qg5+ 63. Bg3 Qc1 64. Bf2) 60. Qa6 {[%emt 0:00:47]} Qc2 {[%emt 0:00:25]} 61. Qa8+ {[%emt 0:00:37]} Bf8 {[%emt 0:00:05]} 62. Qa4 {[%emt 0:00:33]} ({White has to play} 62. Qa7 $18) 62... c4 $17 {[%emt 0:00:22][%cal Bc5c4,Bc4b3,Bb3b2][%mdl 32]} 63. Qd7 $2 {[%emt 0:00:32][%mdl 8192] [#]} (63. Qa1 $17 Nxe4 64. Qa7) 63... cxb3 {[%emt 0:00:21] ( -> ...b2)} 64. Qe6+ {[%emt 0:00:22]} Kh8 {[%emt 0:00:03]} 65. Qd7 {[%emt 0:00:39]} b2 {[%emt 0:00:16] Weighted Error Value: White=0.63/Black=0.29 (precise)} 0-1

[Event "1st Uppsala Festival 2022"]
[Site "Uppsala"]
[Date "2022.08.11"]
[Round "5.2"]
[White "Akesson, Ralf"]
[Black "Johansson, Jan"]
[Result "1-0"]
[ECO "A35"]
[WhiteElo "2427"]
[BlackElo "2306"]
[Annotator "TA"]
[PlyCount "57"]
[EventDate "2022.08.09"]
[EventType "tourn"]
[EventCountry "SWE"]
[SourceTitle "playchess.com"]
[Source "ChessBase"]
[SourceQuality "1"]
[TimeControl "5400+30"]

{[%evp 9,57,20,30,42,55,18,46,36,93,89,125,134,111,127,131,91,103,12,47,41,16,4,25,0,0,0,141,154,176,182,146,177,170,176,187,180,183,99,102,87,118,145,262,215,445,420,489,445,900,872]} 1. Nf3 {[%emt 0:00:04]} c5 {[%emt 0:00:06]} 2. c4 {[%emt 0:00:11]} Nc6 {[%emt 0:00:08]} 3. Nc3 {[%emt 0:00:53]} g6 {[%emt 0:02:23]} 4. e3 {[%emt 0:01:06]} d6 {[%emt 0:03:02]} 5. h3 {[%emt 0:03:10]} Nf6 {[%emt 0:12:09]} 6. d4 {[%emt 0:01:07][%cal Bd2d4,Bd4d5][%mdl 32] A35: Symmetrical English: 2 Nc3 Nc6 3 Nf3.} Bf5 {[%emt 0:01:09]} 7. g4 {[%emt 0:06:23][%cal Bg2g4,Bg4g5][%mdl 32]} Bd7 {[%emt 0:03:32]} 8. d5 {[%emt 0:02:00] [#] White is slightly better.} Nb4 $146 {[%emt 0:04:03]} ({Black should try} 8... Na5 $1 $14) ({Predecessor:} 8... Na5 9. e4 Bg7 10. Bd3 a6 11. Bd2 b5 12. b3 O-O 13. Kf1 Rb8 14. Kg2 e6 {1-0 (66) Sulava,N (2400)-Lisenko,A (2415) Djakovo 1994}) 9. e4 {[%emt 0:07:38]} h5 {[%emt 0:04:42]} 10. g5 {[%emt 0:02:20]} Nh7 {[%emt 0:00:05]} 11. a3 {[%emt 0:11:18]} Na6 {[%emt 0:01:33]} 12. e5 {[%emt 0:01:28][%cal Oe5e6] White is more active.} Bg7 {[%emt 0:01:29]} 13. e6 {[%emt 0:04:46]} (13. Bf4 $16) 13... Bxc3+ {[%emt 0:00:13]} 14. bxc3 {[%emt 0:00:07]} fxe6 {[%emt 0:00:06]} 15. Nh4 $36 {[%emt 0:04:06][%mdl 2048] White fights for an advantage.} Nf8 {[%emt 0:00:50]} 16. Bd3 {[%emt 0:02:44]} (16. Qc2 $5 {[%cal Rh4g6]}) 16... Qa5 $1 {[%emt 0:01:55]} 17. Bd2 {[%emt 0:08:11]} Rg8 {[%emt 0:19:40] [#]} (17... O-O-O $1 $11 {remains equal.}) 18. Nxg6 $1 $16 {[%emt 0:04:14][%mdl 576] Remove Defender} Nxg6 {[%emt 0:00:15]} (18... Qa4 19. Qxa4) 19. Bxg6+ {[%emt 0:00:37]} ({But not} 19. Qxh5 $6 O-O-O 20. Bxg6 Qa4 $14) 19... Rxg6 {[%emt 0:05:34]} 20. Qxh5 {[%emt 0:00:16]} O-O-O {[%emt 0:00:05]} (20... Kf7 $2 21. Qh7+ Ke8 22. Qxg6+ $18) 21. Qxg6 {[%emt 0:00:20]} exd5 {[%emt 0:00:09]} 22. h4 {[%emt 0:09:26]} Qa4 {[%emt 0:03:02] [#]} 23. h5 {[%emt 0:03:33]} (23. Qd3 $1 $18) 23... Qxc4 {[%emt 0:00:33] Strongly threatening ...Nb8.} 24. h6 {[%emt 0:11:44][%cal Bh5h6,Bh6h7][%mdl 32] Black must now prevent h7.} Qg4 {[%emt 0:20:31]} (24... Bg4 $2 25. f3 Kc7 26. fxg4 $18) 25. Qd3 {[%emt 0:09:50] Prevents Qf3.} c4 {[%emt 0:12:18]} (25... Nc7 $16 {is a better defense.} 26. Qe2 Qf5) 26. Qe2 $18 {[%emt 0:00:36]} ({Stronger than} 26. Qxd5 Bc6 27. Qd4 Qe6+ 28. Qe3 Qxe3+ 29. Bxe3 Bxh1 $17) 26... Qg2 $2 {[%emt 0:01:35]} (26... Qf5 27. Be3 (27. h7 Rh8 $14) 27... Nc7) 27. O-O-O {[%emt 0:00:17]} Bg4 {[%emt 0:00:10]} 28. Qxe7 {[%emt 0:02:26][%cal Oh6h7] Hoping for h7!} Nc5 {[%emt 0:01:23] [#]} (28... Bxd1 $142 29. Rxd1 Nc5) 29. h7 $1 {[%emt 0:04:09] Weighted Error Value: White=0.15 (very precise) /Black=0.33} 1-0

[Event "1st Uppsala Festival 2022"]
[Site "Uppsala"]
[Date "2022.08.11"]
[Round "5.3"]
[White "Stefansson, Vignir Vatnar"]
[Black "Sorensen, Hampus"]
[Result "1/2-1/2"]
[ECO "C69"]
[WhiteElo "2461"]
[BlackElo "2376"]
[Annotator "TA"]
[PlyCount "80"]
[EventDate "2022.08.09"]
[EventType "tourn"]
[EventCountry "SWE"]
[SourceTitle "playchess.com"]
[Source "ChessBase"]
[SourceQuality "1"]
[TimeControl "5400+30"]

{[%evp 16,80,28,18,12,0,12,0,7,-16,0,-4,0,-39,14,15,18,21,21,20,18,-15,18,0,57,39,50,48,33,15,18,0,0,0,0,0,8,0,0,-12,0,0,0,0,0,0,0,0,0,0,0,0,0,0,0,0,0,0,0,0,6,0,11,0,0,0,0]} 1. e4 {[%emt 0:01:44]} e5 {[%emt 0:01:03]} 2. Nf3 {[%emt 0:00:51][%cal Bg1f3,Bf3d4,Bd4f5][%mdl 32]} Nc6 {[%emt 0:00:04]} 3. Bb5 {[%emt 0:00:30]} a6 {[%emt 0:00:22]} 4. Bxc6 {[%emt 0:00:12]} dxc6 {[%emt 0:00:44]} 5. O-O {[%emt 0:00:08]} f6 {[%emt 0:02:49]} 6. d4 {[%emt 0:00:09]} exd4 {[%emt 0:00:16]} 7. Nxd4 {[%emt 0:00:07]} Ne7 {[%emt 0:15:54]} 8. Be3 {[%emt 0:03:24]} Ng6 {[%emt 0:01:55]} 9. Nd2 {[%emt 0:12:33]} Bd6 {[%emt 0:10:02] C69: Ruy Lopez: Exchange Variation with 5 0-0 f6.} 10. Nf5 {[%emt 0:09:19]} O-O {[%emt 0:00:44] [#]} 11. Nb3 $146 {[%emt 0:05:35]} ({Predecessor:} 11. Nxd6 Qxd6 12. Nb3 Qxd1 13. Raxd1 b6 14. a4 c5 15. a5 Bb7 16. Rd7 Rf7 17. Rfd1 {½-½ (38) Nuber,K (2241)-Blaskowski,J (2270) Germany 2010}) 11... Re8 {[%emt 0:03:10]} 12. Qg4 {[%emt 0:03:57]} Qd7 {[%emt 0:07:54]} 13. Rfe1 {[%emt 0:02:59]} Qf7 {[%emt 0:01:56]} 14. Rad1 {[%emt 0:19:40]} (14. Nxd6 $5 cxd6 15. Qg3 $11) 14... Kh8 {[%emt 0:03:40]} ({Black should play} 14... Bxf5 $15 15. exf5 Ne5) 15. Nxd6 $11 {[%emt 0:02:57]} cxd6 {[%emt 0:00:05]} 16. Qg3 {[%emt 0:02:40]} Rxe4 {[%emt 0:01:49]} 17. Qxd6 {[%emt 0:00:56]} Re8 {[%emt 0:02:25]} 18. Qd4 {[%emt 0:06:34]} Ne5 {[%emt 0:07:46]} 19. Qc3 {[%emt 0:01:43]} Qg6 {[%emt 0:03:23]} (19... Bg4 $11 20. Rc1 Rad8) 20. Bf4 $1 $14 {[%emt 0:00:29][%cal Rf4e5]} Bg4 {[%emt 0:01:08][%cal Bc8g4,Bg4f3,Bf3d5][%mdl 32]} 21. Rc1 {[%emt 0:00:16][%cal Rf4e5]} Bf3 {[%emt 0:01:41][%csl Gf3][%cal Rg6g2] [#]} 22. Bg3 {[%emt 0:00:08]} Bd5 {[%emt 0:00:08] The position is equal.} 23. Nd4 {[%emt 0:01:47][%cal Bb3d4,Bd4e2,Be2f4][%mdl 32]} h5 {[%emt 0:03:45] aiming for ...h4.} (23... Bxa2 $2 24. b3 $18) 24. h4 {[%emt 0:01:26]} Rad8 {[%emt 0:08:47]} (24... Bxa2 $2 25. b3 $18) 25. Ne2 {[%emt 0:01:06]} Qf5 {[%emt 0:00:57]} (25... Bxa2 $2 26. b3 $18) 26. Nf4 {[%emt 0:01:25]} Bf7 {[%emt 0:00:11]} (26... Bxa2 $2 27. b3 $16) 27. Rcd1 {[%emt 0:00:20]} Rxd1 {[%emt 0:01:00]} (27... Bxa2 $2 28. Rxd8 Rxd8 29. b3 $18) 28. Rxd1 {[%emt 0:00:05]} Ng6 {[%emt 0:00:57]} ({Don't do} 28... Bxa2 29. b3 $16) 29. Nxg6+ {[%emt 0:04:41]} Bxg6 {[%emt 0:00:07]} 30. Rd2 {[%emt 0:00:03]} Re1+ {[%emt 0:03:14]} 31. Kh2 {[%emt 0:00:05]} Re7 {[%emt 0:00:04]} 32. Qb4 {[%emt 0:01:54]} Rd7 {[%emt 0:00:26]} 33. Rxd7 {[%emt 0:03:51]} Qxd7 $11 {[%emt 0:00:05][%mdl 4096] Endgame KQB-KQB} 34. c3 {[%emt 0:00:58]} Kh7 {[%emt 0:00:32]} 35. f3 {[%emt 0:00:17]} Bf5 {[%emt 0:00:16]} 36. Qc5 {[%emt 0:00:34]} Bg6 {[%emt 0:00:05]} 37. a4 {[%emt 0:00:21]} Bf7 {[%emt 0:00:11]} 38. Bf4 {[%emt 0:00:23]} Bg6 {[%emt 0:00:01]} 39. Qd6 {[%emt 0:00:25]} Qxd6 {[%emt 0:00:25]} 40. Bxd6 {[%emt 0:00:06]} a5 {[%emt 0:00:10] Weighted Error Value: White=0.07 (flawless) /Black=0.10 (very precise)} 1/2-1/2

[Event "1st Uppsala Festival 2022"]
[Site "Uppsala"]
[Date "2022.08.11"]
[Round "5.4"]
[White "Trost, Edvin"]
[Black "Sriram, Jha"]
[Result "1/2-1/2"]
[ECO "D93"]
[WhiteElo "2345"]
[BlackElo "2361"]
[Annotator "TA"]
[PlyCount "81"]
[EventDate "2022.08.09"]
[EventType "tourn"]
[EventCountry "SWE"]
[SourceTitle "playchess.com"]
[Source "ChessBase"]
[SourceQuality "1"]
[TimeControl "5400+30"]

{[%evp 15,81,45,47,44,52,55,67,62,75,71,69,61,69,60,69,69,57,58,63,44,47,56,57,38,39,38,39,38,38,40,38,12,16,10,50,0,0,0,0,0,0,0,0,0,0,-8,0,0,0,0,0,0,0,0,0,0,0,0,0,0,0,-23,0,0,0,0,0,0]} 1. d4 {[%emt 0:00:03]} d5 {[%emt 0:00:18]} 2. c4 {[%emt 0:00:40]} c6 {[%emt 0:00:40]} 3. Nf3 {[%emt 0:00:14]} Nf6 {[%emt 0:00:39]} 4. Qb3 {[%emt 0:00:06]} g6 {[%emt 0:03:25]} 5. Nc3 {[%emt 0:04:24]} Bg7 {[%emt 0:04:55]} 6. Bf4 {[%emt 0:04:39]} O-O {[%emt 0:05:54]} 7. e3 {[%emt 0:00:22]} e6 {[%emt 0:18:57]} 8. Be2 {[%emt 0:03:18]} Nbd7 {[%emt 0:03:02]} 9. O-O {[%emt 0:02:40] D93: Grünfeld: 4 Nf3 Bg7 5 Bf4 0-0 6 e3.} Re8 {[%emt 0:11:20]} 10. h3 {[%emt 0:02:47] [#]} Nb6 $146 {[%emt 0:00:28]} ({Predecessor:} 10... b6 11. Qc2 Bb7 12. cxd5 exd5 13. b4 b5 14. a4 a6 15. a5 Nh5 16. Bh2 f5 {1-0 (48) Huang,Q (2438)-Hoang,T (2410) Riadh 2017}) 11. Rac1 {[%emt 0:12:53] White is more active. White is slightly better.} Nxc4 {[%emt 0:01:18]} 12. Bxc4 {[%emt 0:00:11]} dxc4 {[%emt 0:00:04]} 13. Qxc4 {[%emt 0:00:11]} Nd5 {[%emt 0:06:43]} 14. Be5 {[%emt 0:03:53]} Nxc3 {[%emt 0:01:21]} 15. Qxc3 {[%emt 0:01:48]} f6 {[%emt 0:01:19]} 16. Bg3 {[%emt 0:00:16]} Qd5 {[%emt 0:00:22]} 17. Nd2 {[%emt 0:02:17][%cal Bf3d2,Bd2c4,Bc4d6][%mdl 32]} e5 {[%emt 0:05:03]} 18. dxe5 {[%emt 0:00:37]} fxe5 {[%emt 0:00:16]} 19. Nc4 {[%emt 0:04:02]} Be6 {[%emt 0:13:52]} 20. Qb4 {[%emt 0:04:48]} Qb5 {[%emt 0:06:06]} 21. Qxb5 {[%emt 0:05:27]} cxb5 {[%emt 0:00:02]} 22. Nd6 {[%emt 0:00:42]} Re7 {[%emt 0:00:57]} 23. Rc5 {[%emt 0:03:41]} b6 {[%emt 0:01:47]} 24. Rc2 {[%emt 0:03:57]} Bxa2 {[%emt 0:01:40]} 25. Ra1 {[%emt 0:01:01]} (25. Nxb5 $14 Bb3 26. Rc3) 25... b4 {[%emt 0:01:36][%cal Oe7d7]} 26. Rc8+ {[%emt 0:04:52]} ({Reject} 26. Rxa2 b3 27. Rxa7 (27. Nc8 $2 bxc2 28. Nxe7+ Kf8 $19) 27... Rexa7 $17) 26... Rxc8 {[%emt 0:00:12]} 27. Nxc8 {[%emt 0:00:04]} Rc7 {[%emt 0:00:25]} 28. Rxa2 {[%emt 0:00:23]} Rxc8 {[%emt 0:01:12]} 29. Rxa7 $11 {[%emt 0:00:04][%mdl 4096] Endgame KRB-KRB} e4 {[%emt 0:01:28]} 30. Ra4 {[%emt 0:14:18]} Rc4 {[%emt 0:00:14]} 31. b3 {[%emt 0:01:30]} Rc1+ {[%emt 0:00:08]} 32. Kh2 {[%emt 0:00:01]} Bc3 {[%emt 0:00:10]} 33. Bd6 {[%emt 0:01:34]} b5 {[%emt 0:00:31]} 34. Ra5 {[%emt 0:01:30]} Rd1 {[%emt 0:03:25]} 35. Bg3 {[%emt 0:02:06]} Rb1 {[%emt 0:00:02]} 36. Rxb5 {[%emt 0:00:09]} Rxb3 {[%emt 0:00:01]} 37. Be5 {[%emt 0:00:28] [#] Threatens to win with Bxc3.} Be1 {[%emt 0:01:08]} 38. Bg3 {[%emt 0:04:34]} (38. Kg1 $5 {[%cal Rg1f1]}) 38... Rb2 {[%emt 0:02:13]} 39. f3 {[%emt 0:00:38] The position is equal.} Bxg3+ {[%emt 0:03:11]} 40. Kxg3 {[%emt 0:00:07]} exf3 {[%emt 0:00:07]} 41. gxf3 {[%emt 0:00:41] Weighted Error Value: White=0.07 (flawless) /Black=0.04 (flawless)} 1/2-1/2

[Event "1st Uppsala Festival 2022"]
[Site "Uppsala"]
[Date "2022.08.11"]
[Round "5.5"]
[White "Savitha Shri B"]
[Black "Peng, Li Min"]
[Result "0-1"]
[ECO "C55"]
[WhiteElo "2278"]
[BlackElo "2516"]
[Annotator "TA"]
[PlyCount "56"]
[EventDate "2022.08.09"]
[EventType "tourn"]
[EventCountry "SWE"]
[SourceTitle "playchess.com"]
[Source "ChessBase"]
[SourceQuality "1"]
[TimeControl "5400+30"]

{[%evp 14,56,-75,-86,-68,-140,-131,-143,-134,-149,-140,-146,-141,-147,-68,-52,-23,-100,-93,-183,-138,-323,-287,-297,-291,-414,-413,-531,-523,-553,-528,-710,-711,-864,-840,-824,-785,-1002,-980,-1377,-1429,-1425,-1411,-1331,-1283]} 1. e4 {[%emt 0:00:37]} e5 {[%emt 0:41:31]} 2. Nf3 {[%emt 0:00:22]} Nf6 {[%emt 0:00:05]} 3. Nc3 {[%emt 0:00:35]} Nc6 {[%emt 0:00:04]} 4. Bc4 {[%emt 0:04:20]} Nxe4 {[%emt 0:05:20]} 5. Bxf7+ {[%emt 0:02:19]} Kxf7 {[%emt 0:00:08]} 6. Nxe4 {[%emt 0:00:04]} d5 {[%emt 0:00:34]} 7. Ng3 {[%emt 0:18:16]} e4 {[%emt 0:01:41]} 8. Ng1 {[%emt 0:00:07]} Bc5 {[%emt 0:08:09][%cal Oh7h5] And now ...h5! would win. C55: Two Knights: 4 d3, 4 d4 exd4 5 e5 and Max Lange Attack.} 9. N1e2 {[%emt 0:19:03]} (9. d3 $15) 9... h5 $1 $17 {[%emt 0:00:59][%cal Bh7h5,Bh5h4][%mdl 32] White must now prevent ...h4.} (9... Bg4 10. h3 Bxe2 11. Nxe2 $15) 10. d4 {[%emt 0:03:10]} exd3 $1 {[%emt 0:00:53] Black is clearly better.} 11. Qxd3 {[%emt 0:01:22] [#]} h4 $1 {[%emt 0:00:06] [#] Active counter play!} 12. Ne4 $146 {[%emt 0:11:17]} ({Predecessor:} 12. Nf5 Ne5 13. Qc3 Bxf2+ 14. Kxf2 Qf6 15. Qxc7+ Kg6 16. Qxg7+ Qxg7 17. Nxg7 Kxg7 18. Rf1 {1-0 (42) Lezovic,M (1815)-Manak,A (1942) Slovakia 2015}) 12... Bb4+ {[%emt 0:01:11]} (12... dxe4 13. Qc4+ Be6 14. Qxc5 $11) 13. Nd2 {[%emt 0:00:52] [#]} Bg4 {[%emt 0:08:26]} (13... h3 $1 $17 {[%cal Rh3g2]} 14. Rg1 Qf6) 14. f3 {[%emt 0:06:56]} Be6 {[%emt 0:00:02]} (14... Ne5 15. Qd4 h3 16. fxg4 $16 (16. Qxe5 hxg2 17. Rg1 Qh4+ 18. Kd1 Bd6 $11)) (14... Bh5 {looks sharper.} 15. Nf4 Qg5 16. c3 Qxf4 17. Qxd5+ Kf8) 15. c3 {[%emt 0:01:53]} (15. O-O $1 $11 {keeps the balance.}) 15... Bc5 $36 {[%emt 0:00:16][%mdl 2048] Hoping for ...Ne5. Keeping White busy.} 16. f4 {[%emt 0:02:38] Against Ne5} (16. Nb3 $17 Bb6 17. Ned4 (17. Nf4 Qf6 $17)) 16... g6 {[%emt 0:04:02]} 17. Qb5 $2 {[%emt 0:03:11] White does not recover from this.} (17. Nb3 $17 {was the only chance.} Bf5 18. Qf3) 17... Bb6 {[%emt 0:00:54]} 18. Nf3 {[%emt 0:01:04]} Re8 {[%emt 0:00:42] Threatens to win with ...Bf5.} 19. f5 {[%emt 0:03:29]} (19. Kd1 $142) 19... Bxf5 $19 {[%emt 0:01:19]} 20. Kd1 {[%emt 0:03:34]} Kg7 {[%emt 0:05:12] Black is clearly winning.} 21. Bg5 {[%emt 0:03:23]} Qd7 {[%emt 0:00:02] ...h3 is the strong threat.} 22. h3 {[%emt 0:03:19]} a6 {[%emt 0:00:37]} 23. Qb3 {[%emt 0:00:40]} Na5 {[%emt 0:02:10]} ({Don't go for} 23... Qe6 $2 24. Nf4 Qf7 25. Rf1 $19) 24. Qb4 {[%emt 0:01:20]} Nc4 {[%emt 0:00:10] aiming for ...a5.} ({Worse is} 24... Qe6 25. Ned4 Qe4 26. Nxf5+ Qxf5 27. Qf4 $17) 25. Qb3 {[%emt 0:04:45]} Be4 {[%emt 0:05:35] A strong pair of Bishops.} 26. Nfd4 {[%emt 0:01:46]} c5 {[%emt 0:00:29]} 27. Nf3 {[%emt 0:00:10]} Bxf3 {[%emt 0:00:49]} 28. gxf3 {[%emt 0:00:05]} Qf5 {[%emt 0:00:05][%csl LRf3,LRg5] Weighted Error Value: White=0.81/Black=0.08 (flawless)} 0-1